fUSD/lending_fUSD_20260522
["ID","MTS","AMOUNT","RATE_DAILY","PERIOD"]
[422798214,1779412238000,-9949.28361426,0.00014178,2]
[422798225,1779412238000,-167.34,0.00014384,2]
[422798204,1779412238000,-3295.14956905,0.00013971,2]
[422798229,1779412238000,-9949.28361426,0.00014467,2]
[422798213,1779412238000,-3295.14956905,0.00014157,2]
[422798217,1779412238000,-154.82560308,0.0001425,2]
[422798215,1779412238000,-500.0,0.00014247,2]
[422798211,1779412238000,-9949.28361426,0.00014033,2]
[422798205,1779412238000,-500.0,0.00013973,2]
[422798196,1779412238000,-33191.258,0.000138,2]
[422798208,1779412238000,-2197.58590142,0.00014022,2]
[422798219,1779412238000,-361.39743184,0.0001425,2]
[422798185,1779412238000,-1304.42981179,0.000137,2]
[422798188,1779412238000,-449.3404125,0.000137,2]
[422798186,1779412238000,-421.17527739,0.000137,2]
[422798187,1779412238000,-978.80167748,0.000137,2]
[422798189,1779412238000,-2408155.44942142,0.000137,2]
[422798194,1779412238000,-9949.28361426,0.00013744,2]
[422798191,1779412238000,-55253.4584,0.000137,2]
[422798193,1779412238000,-468.27,0.00013739,2]
[422798190,1779412238000,-14573.3509,0.000137,2]
[422798192,1779412238000,-820.99,0.00013703,2]
[422798195,1779412238000,-3295.14956905,0.00013786,2]
[422798197,1779412238000,-2000.0,0.000138,2]
[422798209,1779412238000,-820.99,0.00014022,2]
[422798203,1779412238000,-215.23956962,0.00013939,2]
[422798199,1779412238000,-2500.0,0.000138,2]
[422798221,1779412238000,-9949.28361426,0.00014322,2]
[422798256,1779412238000,-598.0,0.0001477,5]
[422798236,1779412238000,-2000.0,0.00014558,2]
[422798275,1779412238000,-416.71762261,0.000149,2]
[422798279,1779412238000,-5976.19669542,0.000149,3]
[422798282,1779412238000,-361.39743184,0.000149,2]
[422798284,1779412238000,-9949.28361426,0.000149,2]
[422798286,1779412238000,-206.53891018,0.000149,2]
[422798300,1779412238000,-418.0,0.00014961,2]
[422798273,1779412238000,-1714.97600206,0.00014892,2]
[422798304,1779412238000,-196298.76982918,0.00015,2]
[422798290,1779412238000,-181.08291052,0.000149,2]
[422798288,1779412238000,-3295.14956905,0.000149,2]
[422798292,1779412238000,-275.0,0.00014917,2]
[422798294,1779412238000,-210.11647569,0.00014925,2]
[422798298,1779412238000,-1354.0,0.00014961,2]
[422798296,1779412238000,-625.0,0.00014961,2]
[422798302,1779412238000,-765.388,0.00014961,2]
[422798263,1779412238000,-175.26,0.00014841,2]
[422798277,1779412238000,-154.82560308,0.000149,2]
[422798269,1779412238000,-200.0,0.0001488,2]
[422798231,1779412238000,-500.0,0.00014521,2]
[422798233,1779412238000,-3295.14956905,0.00014529,2]
[422798248,1779412238000,-154.82560308,0.00014683,2]
[422798251,1779412238000,-3295.14956905,0.00014714,2]
[422798271,1779412238000,-150.0,0.00014886,2]
[422798240,1779412238000,-129129.1996091,0.00014607,2]
[422798242,1779412238000,-7710.4316647,0.00014607,2]
[422798244,1779412238000,-4968.5479409,0.00014607,2]
[422798238,1779412238000,-173.1475619,0.00014607,2]
[422798246,1779412238000,-9949.28361426,0.00014611,2]
[422798254,1779412238000,-9949.28361426,0.00014756,2]
[422798260,1779412238000,-1025.62,0.000148,2]
[422798258,1779412238000,-500.0,0.00014795,2]
[422798265,1779412238000,-587.0,0.00014847,2]
[422798267,1779412238000,-150.0,0.00014869,2]
[422798250,1779412238000,-255.0,0.00014713,2]
[422798223,1779412238000,-3295.14956905,0.00014343,2]
[422798541,1779412240000,-21042.40124996,0.00015,2]
[422798539,1779412240000,-606.6000014,0.00015,2]
[422798496,1779412240000,-782308.86230654,0.00015,2]
[422798494,1779412240000,-351.15114035,0.00015,2]
[422798492,1779412240000,-612847.32838006,0.00015,2]
[422798490,1779412240000,-160.0,0.00013911,2]
[422798834,1779412242000,-115106.32619322,0.00015,2]
[422798898,1779412243000,-3271.88970174,0.00015,2]
[422798977,1779412245000,-10265.27762212,0.00015,2]
[422798976,1779412245000,-722.752,0.00014961,2]
[422798982,1779412246000,-4193.1906,0.00015,2]
[422798980,1779412246000,-4997.1600214,0.00015,2]
[422798979,1779412246000,-48732.98260557,0.00015,2]
[422798981,1779412246000,-1733.22464842,0.00015,2]
[422799023,1779412890000,2414568.71669128,0.00028,120]
[422799026,1779413156000,-188.33400195,7.05e-05,2]
[422799025,1779413156000,-153.83,6.714e-05,2]
[422799028,1779413352000,-250.0,7.386e-05,2]
[422799027,1779413352000,-61.66599805,7.05e-05,2]
[422799029,1779413352000,-250.0,7.755e-05,2]
[422799031,1779413352000,-153.12137068,0.00010647,2]
[422799030,1779413352000,-500.0,9.229e-05,2]
[422799032,1779413352000,-1200.0,0.00010699,2]
[422799035,1779413352000,-26058.41314345,0.000107,2]
[422799034,1779413352000,-300.0,0.00010699,2]
[422799036,1779413352000,-3614.63817732,0.000107,2]
[422799033,1779413352000,-1200.0,0.00010699,2]
[422799038,1779413357000,-6434.42226747,0.000107,2]
[422799037,1779413357000,-151.0,0.000106,2]
[422799076,1779413432000,-15008.83766839,0.000136,2]
[422799070,1779413432000,-241.56,0.00013595,2]
[422799074,1779413432000,-527.27392166,0.000136,2]
[422799073,1779413432000,-278.27971824,0.000136,2]
[422799069,1779413432000,-150.0,0.00013594,2]
[422799068,1779413432000,-25078.10635098,0.0001359,2]
[422799071,1779413432000,-406.1017,0.00013597,2]
[422799075,1779413432000,-8319.33404524,0.000136,2]
[422799072,1779413432000,-416.71762261,0.000136,2]
[422799077,1779413432000,-1516.73113615,0.000136,2]
[422799087,1779413432000,-2746.63,0.00013699,2]
[422799080,1779413432000,-171.0,0.00013671,2]
[422799081,1779413432000,-151.0,0.00013697,2]
[422799082,1779413432000,-151.0,0.00013697,2]
[422799083,1779413432000,-999.99,0.00013699,2]
[422799085,1779413432000,-299.99,0.00013699,2]
[422799079,1779413432000,-1559.53019891,0.00013669,2]
[422799088,1779413432000,-9999.99,0.00013699,2]
[422799086,1779413432000,-150.99,0.00013699,2]
[422799084,1779413432000,-15870.03,0.00013699,2]
[422799078,1779413432000,-6326.38440842,0.000136,2]
[422799066,1779413432000,-150.0,0.00013488,2]
[422799089,1779413432000,-2051.22,0.00013699,2]
[422799065,1779413432000,-241.56,0.00013272,2]
[422799042,1779413432000,-267.0,0.000107,2]
[422799048,1779413432000,-121.77014307,0.0001234,2]
[422799046,1779413432000,-418.6529361,0.000119,2]
[422799044,1779413432000,-440.99274505,0.000107,2]
[422799039,1779413432000,-907.13116191,0.000107,2]
[422799049,1779413432000,-279.60985693,0.0001234,2]
[422799051,1779413432000,-166.99,0.00012419,2]
[422799052,1779413432000,-1179.18,0.00012419,2]
[422799053,1779413432000,-180.0,0.00012517,2]
[422799067,1779413432000,-2314.3388966,0.000135,2]
[422799055,1779413432000,-2000.0,0.00012556,2]
[422799056,1779413432000,-200.0,0.00012574,2]
[422799059,1779413432000,-300.0,0.00012946,2]
[422799064,1779413432000,-278.29,0.00013179,2]
[422799062,1779413432000,-1735.70028357,0.00013,15]
[422799058,1779413432000,-300.0,0.00012946,2]
[422799063,1779413432000,-150.0,0.00013009,2]
[422799061,1779413432000,-241.56,0.00012948,2]
[422799057,1779413432000,-705.55,0.00012782,2]
[422799060,1779413432000,-584.0,0.00012947,2]
[422799054,1779413432000,-1200.0,0.00012555,2]
[422799091,1779413432000,-167.52,0.00013699,2]
[422799120,1779413432000,-500.0,0.00013699,2]
[422799092,1779413432000,-500.0,0.00013699,2]
[422799118,1779413432000,-199.97151669,0.00013699,2]
[422799126,1779413432000,-500.0,0.00013699,2]
[422799121,1779413432000,-500.0,0.00013699,2]
[422799125,1779413432000,-500.0,0.00013699,2]
[422799124,1779413432000,-207.44941885,0.00013699,2]
[422799123,1779413432000,-500.0,0.00013699,2]
[422799119,1779413432000,-500.0,0.00013699,2]
[422799122,1779413432000,-500.0,0.00013699,2]
[422799127,1779413432000,-500.0,0.00013699,2]
[422799117,1779413432000,-500.0,0.00013699,2]
[422799130,1779413432000,-500.0,0.00013699,2]
[422799129,1779413432000,-500.0,0.00013699,2]
[422799128,1779413432000,-500.0,0.00013699,2]
[422799132,1779413432000,-515.9133921,0.00013699,2]
[422799134,1779413432000,-523.39926531,0.00013699,2]
[422799133,1779413432000,-195.76023544,0.00013699,2]
[422799137,1779413432000,-69728.9177,0.000137,2]
[422799136,1779413432000,-2487.0393,0.000137,2]
[422799138,1779413432000,-4170.3749,0.000137,2]
[422799090,1779413432000,-200.0,0.00013699,2]
[422799135,1779413432000,-413210.1486,0.000137,2]
[422799115,1779413432000,-500.0,0.00013699,2]
[422799131,1779413432000,-500.0,0.00013699,2]
[422799113,1779413432000,-500.0,0.00013699,2]
[422799094,1779413432000,-500.0,0.00013699,2]
[422799095,1779413432000,-500.0,0.00013699,2]
[422799096,1779413432000,-500.0,0.00013699,2]
[422799097,1779413432000,-500.0,0.00013699,2]
[422799098,1779413432000,-500.0,0.00013699,2]
[422799093,1779413432000,-500.0,0.00013699,2]
[422799099,1779413432000,-500.0,0.00013699,2]
[422799100,1779413432000,-500.0,0.00013699,2]
[422799103,1779413432000,-500.0,0.00013699,2]
[422799102,1779413432000,-500.0,0.00013699,2]
[422799101,1779413432000,-500.0,0.00013699,2]
[422799105,1779413432000,-500.0,0.00013699,2]
[422799109,1779413432000,-500.0,0.00013699,2]
[422799106,1779413432000,-500.0,0.00013699,2]
[422799107,1779413432000,-500.0,0.00013699,2]
[422799112,1779413432000,-500.0,0.00013699,2]
[422799110,1779413432000,-500.0,0.00013699,2]
[422799108,1779413432000,-500.0,0.00013699,2]
[422799111,1779413432000,-500.0,0.00013699,2]
[422799114,1779413432000,-500.0,0.00013699,2]
[422799104,1779413432000,-500.0,0.00013699,2]
[422799116,1779413432000,-500.0,0.00013699,2]
[422799141,1779413433000,-159400.85874875,0.000137,2]
[422799139,1779413433000,-193839.80864784,0.000137,2]
[422799140,1779413433000,-71574.96061894,0.000137,2]
[422799144,1779413438000,-212.07883311,0.00013699,2]
[422799143,1779413438000,-207.09432689,0.000107,2]
[422799145,1779413438000,-287.92116689,0.00013699,2]
[422799148,1779413438000,-1158.2306121,0.000137,2]
[422799149,1779413438000,-12620.27431262,0.000137,2]
[422799147,1779413438000,-474.73371842,0.00013699,2]
[422799437,1779413440000,-500.0,0.00014,2]
[422799435,1779413440000,-619.59,0.00014,2]
[422799433,1779413440000,-500.0,0.00014,2]
[422799424,1779413440000,-160.0,0.00013979,2]
[422799419,1779413440000,-241.56,0.00013919,2]
[422799428,1779413440000,-215.23956962,0.00013997,2]
[422799431,1779413440000,-250.0,0.00014,2]
[422799422,1779413440000,-6326.38440838,0.00013971,2]
[422799417,1779413440000,-15008.83766834,0.00013889,2]
[422799426,1779413440000,-150.0,0.00013987,2]
[422799415,1779413440000,-8319.33404518,0.00013889,2]
[422799411,1779413440000,-1680.0,0.00013811,2]
[422799413,1779413440000,-278.27971824,0.00013817,2]
[422799398,1779413440000,-8319.33404518,0.00013744,2]
[422799404,1779413440000,-6326.38440838,0.00013786,2]
[422799406,1779413440000,-2000.0,0.000138,2]
[422799396,1779413440000,-2057545.93684903,0.000137,2]
[422799402,1779413440000,-500.0,0.00013769,2]
[422799400,1779413440000,-15008.83766834,0.00013744,2]
[422799375,1779413440000,-436.19646076,0.000137,2]
[422799373,1779413440000,-467.97099624,0.000137,2]
[422799328,1779413440000,-959.37255751,0.000137,2]
[422799330,1779413440000,-377.62386899,0.000137,2]
[422799439,1779413440000,-500.0,0.00014,2]
[422799408,1779413440000,-2500.0,0.000138,2]
[422799449,1779413440000,-500.0,0.00014,2]
[422799327,1779413440000,-1618.76632722,0.000137,2]
[422799455,1779413440000,-500.0,0.00014,2]
[422799442,1779413440000,-500.0,0.00014,2]
[422799490,1779413440000,-500.0,0.00014,2]
[422799492,1779413440000,-500.0,0.00014,2]
[422799491,1779413440000,-500.0,0.00014,2]
[422799496,1779413440000,-500.0,0.00014,2]
[422799494,1779413440000,-500.0,0.00014,2]
[422799487,1779413440000,-500.0,0.00014,2]
[422799485,1779413440000,-500.0,0.00014,2]
[422799483,1779413440000,-500.0,0.00014,2]
[422799468,1779413440000,-500.0,0.00014,2]
[422799478,1779413440000,-500.0,0.00014,2]
[422799476,1779413440000,-500.0,0.00014,2]
[422799489,1779413440000,-500.0,0.00014,2]
[422799472,1779413440000,-500.0,0.00014,2]
[422799470,1779413440000,-500.0,0.00014,2]
[422799450,1779413440000,-500.0,0.00014,2]
[422799452,1779413440000,-500.0,0.00014,2]
[422799444,1779413440000,-500.0,0.00014,2]
[422799459,1779413440000,-500.0,0.00014,2]
[422799461,1779413440000,-500.0,0.00014,2]
[422799446,1779413440000,-500.0,0.00014,2]
[422799457,1779413440000,-500.0,0.00014,2]
[422799465,1779413440000,-500.0,0.00014,2]
[422799463,1779413440000,-500.0,0.00014,2]
[422799474,1779413440000,-500.0,0.00014,2]
[422799480,1779413440000,-500.0,0.00014,2]
[422799516,1779413441000,-500.0,0.00014,2]
[422799529,1779413441000,-167.52,0.00014041,2]
[422799514,1779413441000,-507.72,0.00014,2]
[422799518,1779413441000,-500.0,0.00014,2]
[422799534,1779413441000,-180.0,0.00014082,2]
[422799510,1779413441000,-500.0,0.00014,2]
[422799505,1779413441000,-500.0,0.00014,2]
[422799501,1779413441000,-500.0,0.00014,2]
[422799499,1779413441000,-500.0,0.00014,2]
[422799503,1779413441000,-500.0,0.00014,2]
[422799507,1779413441000,-500.0,0.00014,2]
[422799521,1779413441000,-508.51,0.00014,2]
[422799512,1779413441000,-500.0,0.00014,2]
[422799523,1779413441000,-278.27971824,0.00014033,2]
[422799525,1779413441000,-8319.33404518,0.00014033,2]
[422799536,1779413441000,-150.0,0.0001411,2]
[422799527,1779413441000,-15008.83766834,0.00014033,2]
[422799561,1779413441000,-128438.12617031,0.00014205,2]
[422799547,1779413441000,-420.0,0.00014198,2]
[422799549,1779413441000,-49536.4151708,0.00014204,2]
[422799559,1779413441000,-6193.3164624,0.00014205,2]
[422799555,1779413441000,-500.0,0.00014204,2]
[422799542,1779413441000,-8319.33404518,0.00014178,2]
[422799557,1779413441000,-105346.7928204,0.00014205,2]
[422799553,1779413441000,-500.0,0.00014204,2]
[422799540,1779413441000,-6326.38440838,0.00014157,2]
[422799551,1779413441000,-500.0,0.00014204,2]
[422799538,1779413441000,-2000.0,0.00014126,2]
[422799532,1779413441000,-500.0,0.00014043,2]
[422799544,1779413441000,-15008.83766834,0.00014178,2]
[422799862,1779413443000,-229.691597,0.000147,2]
[422799868,1779413443000,-691.0,0.00014702,2]
[422799870,1779413443000,-357.0,0.00014702,2]
[422799860,1779413443000,-278.27971824,0.00014683,2]
[422799872,1779413443000,-249.0,0.00014702,2]
[422799874,1779413443000,-258.0,0.00014702,2]
[422799891,1779413443000,-278.29,0.00014827,2]
[422799864,1779413443000,-266.0,0.00014702,2]
[422799878,1779413443000,-255.0,0.00014709,2]
[422799880,1779413443000,-6326.38440838,0.00014714,2]
[422799882,1779413443000,-8319.33404518,0.00014756,2]
[422799858,1779413443000,-15008.83766834,0.00014611,2]
[422799894,1779413443000,-571.54583,0.0001485,2]
[422799895,1779413443000,-571.54583,0.0001485,2]
[422799876,1779413443000,-166.43781764,0.00014702,2]
[422799856,1779413443000,-8319.33404518,0.00014611,2]
[422799836,1779413443000,-8319.33404518,0.00014322,2]
[422799852,1779413443000,-6326.38440838,0.00014529,2]
[422799889,1779413443000,-501.0,0.0001477,5]
[422799824,1779413443000,-38740.11652489,0.00014205,2]
[422799830,1779413443000,-278.27971824,0.0001425,2]
[422799826,1779413443000,-4385.2587301,0.00014205,2]
[422799828,1779413443000,-241.56,0.00014243,2]
[422799832,1779413443000,-527.27392166,0.0001425,2]
[422799854,1779413443000,-350.0,0.00014558,2]
[422799845,1779413443000,-8319.33404518,0.00014467,2]
[422799843,1779413443000,-278.27971824,0.00014467,2]
[422799849,1779413443000,-150.0,0.00014487,2]
[422799847,1779413443000,-15008.83766834,0.00014467,2]
[422799839,1779413443000,-6326.38440838,0.00014343,2]
[422799838,1779413443000,-15008.83766834,0.00014322,2]
[422799841,1779413443000,-167.52,0.00014384,2]
[422799833,1779413443000,-1559.53019891,0.00014285,2]
[422799897,1779413443000,-571.54582,0.0001485,2]
[422799949,1779413443000,-500.0,0.00014999,2]
[422799899,1779413443000,-200.0,0.0001488,2]
[422799945,1779413443000,-500.0,0.00014999,2]
[422799947,1779413443000,-500.0,0.00014999,2]
[422799901,1779413443000,-5976.19669542,0.000149,3]
[422799932,1779413443000,-151.0,0.00014997,2]
[422799937,1779413443000,-500.0,0.00014999,2]
[422799955,1779413443000,-479.0,0.00015,5]
[422799943,1779413443000,-500.0,0.00014999,2]
[422799939,1779413443000,-500.0,0.00014999,2]
[422799941,1779413443000,-500.0,0.00014999,2]
[422799934,1779413443000,-500.0,0.00014999,2]
[422799957,1779413443000,-397997.83572063,0.00015,2]
[422799960,1779413443000,-80852.22712661,0.00015,2]
[422799964,1779413443000,-675.64498993,0.00015,2]
[422799966,1779413443000,-1000.0,0.00015,2]
[422799953,1779413443000,-500.0,0.00014999,2]
[422799924,1779413443000,-210.11647569,0.00014925,2]
[422799951,1779413443000,-500.0,0.00014999,2]
[422799922,1779413443000,-150.0,0.00014925,2]
[422799903,1779413443000,-278.27971824,0.000149,2]
[422799885,1779413443000,-158.056,0.0001477,2]
[422799918,1779413443000,-1559.53019891,0.000149,2]
[422799883,1779413443000,-15008.83766834,0.00014756,2]
[422799905,1779413443000,-527.27392166,0.000149,2]
[422799908,1779413443000,-8319.33404518,0.000149,2]
[422799914,1779413443000,-181.08291052,0.000149,2]
[422799887,1779413443000,-2379.982,0.0001477,2]
[422799912,1779413443000,-619.61673054,0.000149,2]
[422799926,1779413443000,-778.825,0.00014961,2]
[422799928,1779413443000,-626.885,0.00014961,2]
[422799930,1779413443000,-150.0,0.00014986,2]
[422799916,1779413443000,-6326.38440838,0.000149,2]
[422799920,1779413443000,-150.0,0.00014903,2]
[422799910,1779413443000,-15008.83766834,0.000149,2]
[422800023,1779413446000,-12032.05927818,0.00015,2]
[422800015,1779413446000,-500.0,0.00014,2]
[422800017,1779413446000,-481.95765662,0.00014274,2]
[422800016,1779413446000,-22.02000001,0.00014274,2]
[422800019,1779413446000,-6301.97022061,0.00015,2]
[422800018,1779413446000,-1355.151,0.00014831,2]
[422800020,1779413446000,-2466.90443037,0.00015,2]
[422800021,1779413446000,-151042.36341213,0.00015,2]
[422800022,1779413446000,-51195.53335008,0.00015,2]
[422800027,1779413446000,-1536.65572187,0.00015,2]
[422800025,1779413446000,-400.0,0.00015,2]
[422800033,1779413446000,-458.66526517,0.00015,2]
[422800032,1779413446000,-1696.5771902,0.00015,2]
[422800034,1779413446000,-1397.6292676,0.00015,2]
[422800024,1779413446000,-384.65,0.00015,2]
[422800028,1779413446000,-3755.65019565,0.00015,2]
[422800026,1779413446000,-661.90595946,0.00015,2]
[422800031,1779413446000,-3713.08295613,0.00015,2]
[422800029,1779413446000,-400.0,0.00015,2]
[422800037,1779413759000,152.0,9.106e-05,7]
[422800044,1779414214000,253.991405,6.2e-05,2]
[422800045,1779414332000,-169.56,6.38e-05,2]
[422800046,1779414332000,-169.56,8.423e-05,2]
[422800047,1779414332000,-39.35411538,0.0001,2]
[422800049,1779414558000,-124.10588462,0.0001,2]
[422800054,1779414558000,-166.99,0.00011991,2]
[422800051,1779414558000,-287.32411163,0.00011,2]
[422800050,1779414558000,-169.56,0.00010466,2]
[422800053,1779414558000,-210.37743029,0.00011959,2]
[422800055,1779414558000,-168.7439658,0.00012059,2]
[422800052,1779414558000,-150.0,0.00011958,2]
[422800056,1779414563000,-168.29641814,0.00012059,2]
[422800109,1779414632000,-151.18563071,0.00013488,2]
[422800101,1779414632000,-150.0,0.00013488,2]
[422800099,1779414632000,-150.0,0.00013488,2]
[422800103,1779414632000,-181.59793737,0.00013488,2]
[422800089,1779414632000,-24371.09,0.00013011,2]
[422800087,1779414632000,-1000.0,0.0001301,2]
[422800085,1779414632000,-1001.57399535,0.0001301,2]
[422800091,1779414632000,-267.36,0.00013034,2]
[422800083,1779414632000,-2651.545,0.0001301,2]
[422800104,1779414632000,-217.49702434,0.00013488,2]
[422800108,1779414632000,-230.50327238,0.00013488,2]
[422800105,1779414632000,-150.0,0.00013488,2]
[422800118,1779414632000,-194.2200043,0.000136,2]
[422800112,1779414632000,-150.0,0.00013488,2]
[422800127,1779414632000,-173.98,0.00013699,2]
[422800116,1779414632000,-210.37743028,0.000135,2]
[422800114,1779414632000,-150.0,0.00013488,2]
[422800097,1779414632000,-1659.57,0.00013437,2]
[422800123,1779414632000,-798.48862102,0.000136,2]
[422800125,1779414632000,-212.63791795,0.0001369,2]
[422800129,1779414632000,-500.0,0.00013699,2]
[422800121,1779414632000,-3020.9167334,0.000136,2]
[422800095,1779414632000,-250.0,0.00013265,2]
[422800071,1779414632000,-1659.57,0.00012521,2]
[422800084,1779414632000,-173.449,0.0001301,2]
[422800061,1779414632000,-261.39,0.00012102,2]
[422800062,1779414632000,-1659.57,0.00012216,2]
[422800059,1779414632000,-2623.822497,0.00011999,2]
[422800065,1779414632000,-361.0,0.00012301,2]
[422800063,1779414632000,-252.35,0.00012259,2]
[422800060,1779414632000,-518.93961606,0.00012059,2]
[422800068,1779414632000,-169.56,0.00012509,2]
[422800067,1779414632000,-2000.0,0.00012403,2]
[422800064,1779414632000,-150.0,0.00012268,2]
[422800066,1779414632000,-494.33,0.00012352,2]
[422800093,1779414632000,-1659.57,0.00013132,2]
[422800070,1779414632000,-1200.0,0.0001252,2]
[422800080,1779414632000,-1659.57,0.00012826,2]
[422800077,1779414632000,-1312.12,0.00012661,2]
[422800135,1779414632000,-513.52313784,0.00013699,2]
[422800069,1779414632000,-300.0,0.0001252,2]
[422800081,1779414632000,-154.93,0.00012887,2]
[422800076,1779414632000,-2793.08,0.0001265,2]
[422800074,1779414632000,-300.0,0.00012586,2]
[422800073,1779414632000,-300.0,0.00012585,2]
[422800082,1779414632000,-150.0,0.00012944,2]
[422800075,1779414632000,-440.0,0.00012586,2]
[422800078,1779414632000,-200.0,0.00012694,2]
[422800139,1779414632000,-500.0,0.00013699,2]
[422800079,1779414632000,-668.25,0.00012802,2]
[422800140,1779414632000,-500.0,0.00013699,2]
[422800161,1779414632000,-500.0,0.00013699,2]
[422800166,1779414632000,-500.0,0.00013699,2]
[422800163,1779414632000,-646.53112887,0.00013699,2]
[422800165,1779414632000,-500.0,0.00013699,2]
[422800160,1779414632000,-500.0,0.00013699,2]
[422800164,1779414632000,-500.0,0.00013699,2]
[422800174,1779414632000,-250.0,0.00013699,2]
[422800168,1779414632000,-500.0,0.00013699,2]
[422800175,1779414632000,-500.0,0.00013699,2]
[422800178,1779414632000,-500.0,0.00013699,2]
[422800156,1779414632000,-500.0,0.00013699,2]
[422800177,1779414632000,-500.0,0.00013699,2]
[422800167,1779414632000,-500.0,0.00013699,2]
[422800169,1779414632000,-500.0,0.00013699,2]
[422800170,1779414632000,-500.0,0.00013699,2]
[422800171,1779414632000,-500.0,0.00013699,2]
[422800172,1779414632000,-500.0,0.00013699,2]
[422800173,1779414632000,-500.0,0.00013699,2]
[422800179,1779414632000,-500.0,0.00013699,2]
[422800180,1779414632000,-500.0,0.00013699,2]
[422800181,1779414632000,-500.0,0.00013699,2]
[422800130,1779414632000,-2607.38860181,0.00013699,2]
[422800176,1779414632000,-500.0,0.00013699,2]
[422800159,1779414632000,-500.0,0.00013699,2]
[422800162,1779414632000,-500.0,0.00013699,2]
[422800157,1779414632000,-500.0,0.00013699,2]
[422800131,1779414632000,-511.04370431,0.00013699,2]
[422800138,1779414632000,-500.0,0.00013699,2]
[422800137,1779414632000,-339.98006168,0.00013699,2]
[422800133,1779414632000,-506.75086284,0.00013699,2]
[422800136,1779414632000,-500.0,0.00013699,2]
[422800132,1779414632000,-507.49297158,0.00013699,2]
[422800158,1779414632000,-500.0,0.00013699,2]
[422800134,1779414632000,-500.0,0.00013699,2]
[422800144,1779414632000,-500.0,0.00013699,2]
[422800147,1779414632000,-500.0,0.00013699,2]
[422800143,1779414632000,-500.0,0.00013699,2]
[422800141,1779414632000,-500.0,0.00013699,2]
[422800153,1779414632000,-500.0,0.00013699,2]
[422800151,1779414632000,-500.0,0.00013699,2]
[422800154,1779414632000,-500.0,0.00013699,2]
[422800146,1779414632000,-500.0,0.00013699,2]
[422800149,1779414632000,-500.0,0.00013699,2]
[422800142,1779414632000,-500.0,0.00013699,2]
[422800148,1779414632000,-500.0,0.00013699,2]
[422800145,1779414632000,-500.0,0.00013699,2]
[422800150,1779414632000,-500.0,0.00013699,2]
[422800152,1779414632000,-500.0,0.00013699,2]
[422800155,1779414632000,-500.0,0.00013699,2]
[422800183,1779414633000,-500.0,0.00013699,2]
[422800184,1779414633000,-500.0,0.00013699,2]
[422800187,1779414633000,-500.0,0.00013699,2]
[422800185,1779414633000,-500.0,0.00013699,2]
[422800191,1779414633000,-500.0,0.00013699,2]
[422800186,1779414633000,-500.0,0.00013699,2]
[422800182,1779414633000,-500.0,0.00013699,2]
[422800189,1779414633000,-500.0,0.00013699,2]
[422800193,1779414633000,-500.0,0.00013699,2]
[422800188,1779414633000,-182.31360289,0.00013699,2]
[422800201,1779414633000,-500.0,0.00013699,2]
[422800190,1779414633000,-500.0,0.00013699,2]
[422800197,1779414633000,-482.77149325,0.00013699,2]
[422800202,1779414633000,-652488.6145381,0.000137,2]
[422800204,1779414633000,-71937.76686267,0.000137,2]
[422800206,1779414633000,-1254.41808677,0.000137,2]
[422800203,1779414633000,-202381.066867,0.000137,2]
[422800199,1779414633000,-577.7666444,0.00013699,2]